[Event "EYCC 2017"]
[Site "Mamaia"]
[Date "2017.09.07"]
[Round "3"]
[White "Pultinevicius, Paulius"]
[Black "Tryggestad, Andreas Garberg"]
[Result "1-0"]
[ECO "A05"]
[WhiteElo "2381"]
[BlackElo "2302"]
[Annotator "NA"]
[PlyCount "75"]
[EventDate "2017.??.??"]
[EventType "swiss"]
[EventCountry "ROU"]
[SourceTitle "playchess.com"]
[Source "ChessBase"]
[SourceQuality "1"]
[TimeControl "40/5400+30:1800+30"]

1. Nf3 {[%emt 0:00:00]} Nf6 {[%emt 0:00:06]} 2. c4 {[%emt 0:00:00]} c6 {[%emt 0:00:22]} 3. d4 {[%emt 0:01:03]} g6 {[%emt 0:00:26]} 4. Nc3 {[%emt 0:01:40]} d5 {[%emt 0:00:06]} 5. e3 {[%emt 0:03:56]} Bg7 {[%emt 0:00:33]} 6. Be2 {[%emt 0:00:48]} O-O {[%emt 0:00:21]} 7. O-O {[%emt 0:00:41]} a6 {[%emt 0:02:09]} 8. a4 {[%emt 0:10:38]} Be6 {[%emt 0:03:32]} 9. Qb3 {[%emt 0:02:21]} Qc7 {[%emt 0:04:58]} 10. Ng5 {[%emt 0:03:28]} Bg4 {[%emt 0:14:59]} 11. f3 {[%emt 0:05:34]} Bd7 {[%emt 0:01:55]} 12. f4 {[%emt 0:08:09]} h6 {[%emt 0:02:04]} 13. Nf3 {[%emt 0:02:00]} Be6 {[%emt 0:03:59]} 14. Bd2 {[%emt 0:06:16]} Nbd7 {[%emt 0:01:24]} 15. a5 {[%emt 0:01:20]} Rfb8 {[%emt 0:11:02]} 16. Rfc1 {[%emt 0:06:10]} b5 {[%emt 0:04:02]} 17. cxd5 {[%emt 0:06:30]} cxd5 {[%emt 0:00:18]} 18. Ne5 {[%emt 0:02:47]} Qb7 {[%emt 0:01:50]} 19. Be1 {[%emt 0:06:53]} Ne4 {[%emt 0:06:36]} 20. Na2 {[%emt 0:13:21]} Rc8 {[%emt 0:03:39]} 21. Bf3 {[%emt 0:01:09]} Nxe5 {[%emt 0:18:31]} 22. fxe5 {[%emt 0:00:04]} Rxc1 {[%emt 0:01:23]} 23. Rxc1 {[%emt 0:00:18]} Rc8 {[%emt 0:00:01]} 24. Rxc8+ {[%emt 0:01:38]} Qxc8 {[%emt 0:00:03]} 25. Bb4 {[%emt 0:05:44]} Bf8 {[%emt 0:12:26]} 26. h3 {[%emt 0:03:24]} Qc6 {[%emt 0:01:13]} 27. Bc3 {[%emt 0:02:24]} Qc7 {[%emt 0:01:48]} 28. Bxe4 {[%emt 0:01:28]} dxe4 {[%emt 0:00:01]} 29. d5 {[%emt 0:00:00]} Bc8 {[%emt 0:00:02]} 30. Qb4 {[%emt 0:01:43]} Bb7 {[%emt 0:00:01]} 31. Qd4 {[%emt 0:02:41]} Qd8 {[%emt 0:01:27]} 32. Nb4 {[%emt 0:00:59]} Qxa5 {[%emt 0:02:51]} 33. e6 {[%emt 0:00:18]} f6 {[%emt 0:00:27]} 34. d6 {[%emt 0:00:29]} Qd8 {[%emt 0:01:54]} 35. d7 {[%emt 0:00:09]} a5 {[%emt 0:00:46]} 36. Nd5 {[%emt 0:00:47]} b4 {[%emt 0:00:34]} 37. Qb6 {[%emt 0:00:23]} bxc3 {[%emt 0:00:40]} 38. Qxd8 {[%emt 0:00:16]} 1-0

[Event "EYCC 2017"]
[Site "Mamaia"]
[Date "2017.09.07"]
[Round "3"]
[White "Macovei, Andrei"]
[Black "Yayloyan, Konstantin"]
[Result "0-1"]
[ECO "B56"]
[WhiteElo "2363"]
[BlackElo "2142"]
[Annotator "NA"]
[PlyCount "72"]
[EventDate "2017.??.??"]
[EventType "swiss"]
[EventCountry "ROU"]
[SourceTitle "playchess.com"]
[Source "ChessBase"]
[SourceQuality "1"]
[TimeControl "40/5400+30:1800+30"]

1. e4 {[%emt 0:00:00]} c5 {[%emt 0:00:12]} 2. Nf3 {[%emt 0:00:00]} d6 {[%emt 0:00:10]} 3. d4 {[%emt 0:00:00]} cxd4 {[%emt 0:00:03]} 4. Nxd4 {[%emt 0:00:00]} Nf6 {[%emt 0:00:04]} 5. Nc3 {[%emt 0:00:02]} Bd7 {[%emt 0:00:23]} 6. Bg5 {[%emt 0:01:47]} e6 {[%emt 0:01:06]} 7. Ndb5 {[%emt 0:00:35]} Bc6 {[%emt 0:01:10]} 8. Bxf6 {[%emt 0:00:10]} gxf6 {[%emt 0:00:06]} 9. Qh5 {[%emt 0:00:15]} a6 {[%emt 0:01:26]} 10. Nd4 {[%emt 0:00:17]} Bd7 {[%emt 0:00:05]} 11. O-O-O {[%emt 0:00:14]} Nc6 {[%emt 0:01:23]} 12. Nb3 {[%emt 0:00:17]} b5 {[%emt 0:08:01]} 13. f4 {[%emt 0:04:05]} b4 14. Ne2 {[%emt 0:00:55]} a5 {[%emt 0:06:53]} 15. f5 {[%emt 0:03:20]} e5 {[%emt 0:00:55]} 16. Ng3 {[%emt 0:00:26]} Be7 {[%emt 0:02:46]} 17. Bc4 {[%emt 0:06:09]} Rf8 {[%emt 0:01:05]} 18. Qh6 {[%emt 0:26:45]} a4 {[%emt 0:18:06]} 19. Nh5 {[%emt 0:01:04]} Qc7 {[%emt 0:02:14]} 20. Nd2 {[%emt 0:11:06]} Nd4 {[%emt 0:01:44]} 21. Kb1 {[%emt 0:04:15]} Bb5 {[%emt 0:14:11]} 22. Bxb5+ {[%emt 0:14:57]} Nxb5 {[%emt 0:00:04]} 23. Qe3 {[%emt 0:00:52]} a3 {[%emt 0:04:00]} 24. Qd3 {[%emt 0:00:50]} Qc6 {[%emt 0:10:58]} 25. Qd5 {[%emt 0:07:06]} Qa6 {[%emt 0:04:37]} 26. Nc4 {[%emt 0:10:19]} axb2 {[%emt 0:02:57]} 27. Nxf6+ {[%emt 0:02:56]} Kd8 {[%emt 0:00:05]} 28. Kxb2 {[%emt 0:04:07]} Bxf6 {[%emt 0:01:33]} 29. a4 {[%emt 0:00:51]} bxa3+ {[%emt 0:00:50]} 30. Ka1 {[%emt 0:00:01]} Ke7 {[%emt 0:00:38]} 31. Rd3 {[%emt 0:00:59]} Rfc8 {[%emt 0:01:41]} 32. Ne3 {[%emt 0:00:45]} Nd4 {[%emt 0:00:48]} 33. Rhd1 {[%emt 0:00:30]} Nxc2+ {[%emt 0:01:44]} 34. Nxc2 {[%emt 0:00:02]} Rxc2 {[%emt 0:00:05]} 35. Qxd6+ {[%emt 0:00:21]} Qxd6 {[%emt 0:00:03]} 36. Rxd6 {[%emt 0:00:03]} Rxg2 {[%emt 0:00:28]} 0-1

[Event "EYCC 2017"]
[Site "Mamaia"]
[Date "2017.09.07"]
[Round "3"]
[White "Garcia Martin, Marta"]
[Black "Sucikova, Svetlana"]
[Result "1/2-1/2"]
[ECO "B12"]
[WhiteElo "2360"]
[BlackElo "2055"]
[Annotator "NA"]
[PlyCount "82"]
[EventDate "2017.??.??"]
[EventType "swiss"]
[EventCountry "ROU"]
[SourceTitle "playchess.com"]
[Source "ChessBase"]
[SourceQuality "1"]
[TimeControl "40/5400+30:1800+30"]

1. e4 {[%emt 0:00:00]} c6 {[%emt 0:00:42]} 2. d4 {[%emt 0:00:00]} d5 {[%emt 0:00:52]} 3. e5 {[%emt 0:00:22]} Bf5 {[%emt 0:01:33]} 4. h4 {[%emt 0:00:27]} Qb6 {[%emt 0:02:19]} 5. h5 {[%emt 0:07:07]} h6 {[%emt 0:02:13]} 6. Nc3 {[%emt 0:02:08]} e6 {[%emt 0:01:37]} 7. Nge2 {[%emt 0:08:13]} Nd7 {[%emt 0:01:18]} 8. Na4 {[%emt 0:09:01]} Qa5+ {[%emt 0:03:14]} 9. c3 {[%emt 0:05:22]} b5 {[%emt 0:06:48]} 10. Nc5 {[%emt 0:00:59]} Bxc5 {[%emt 0:01:00]} 11. dxc5 {[%emt 0:01:53]} b4 {[%emt 0:11:01]} 12. Bd2 Qxc5 {[%emt 0:17:29]} 13. Nd4 {[%emt 0:30:32]} Ne7 {[%emt 0:05:11]} 14. Nb3 {[%emt 0:09:40]} Qb6 {[%emt 0:01:20]} 15. cxb4 {[%emt 0:00:03]} Nxe5 {[%emt 0:05:39]} 16. Bc3 {[%emt 0:01:07]} Ng4 {[%emt 0:00:25]} 17. Qd2 {[%emt 0:03:53]} e5 {[%emt 0:02:43]} 18. b5 {[%emt 0:05:51]} c5 {[%emt 0:08:09]} 19. f3 {[%emt 0:01:35]} Nf6 {[%emt 0:02:01]} 20. Bxe5 {[%emt 0:01:32]} O-O {[%emt 0:05:30]} 21. Be2 {[%emt 0:00:20]} Nd7 {[%emt 0:01:15]} 22. Bf4 {[%emt 0:00:29]} d4 {[%emt 0:03:20]} 23. g4 {[%emt 0:02:47]} Bh7 {[%emt 0:01:19]} 24. Bc4 {[%emt 0:01:13]} Rfe8 {[%emt 0:02:29]} 25. Kf2 {[%emt 0:02:07]} Qf6 {[%emt 0:05:13]} 26. Na5 {[%emt 0:05:03]} Nb6 {[%emt 0:01:30]} 27. Rae1 {[%emt 0:00:39]} Ned5 {[%emt 0:00:27]} 28. Kg3 {[%emt 0:00:25]} Re6 {[%emt 0:05:04]} 29. Bxd5 {[%emt 0:01:06]} Nxd5 {[%emt 0:00:06]} 30. Nc4 Rae8 {[%emt 0:00:42]} 31. Rxe6 {[%emt 0:00:57]} Rxe6 {[%emt 0:00:32]} 32. Rh2 {[%emt 0:00:36]} Nxf4 {[%emt 0:01:37]} 33. Qxf4 {[%emt 0:00:03]} Qxf4+ {[%emt 0:00:14]} 34. Kxf4 {[%emt 0:00:03]} Bd3 {[%emt 0:00:10]} 35. b3 {[%emt 0:01:20]} Bxc4 {[%emt 0:00:13]} 36. bxc4 {[%emt 0:00:03]} Re3 {[%emt 0:00:55]} 37. Rc2 {[%emt 0:00:58]} Kf8 {[%emt 0:00:09]} 38. a4 {[%emt 0:00:26]} Ke7 {[%emt 0:01:19]} 39. a5 {[%emt 0:00:27]} Kd7 {[%emt 0:00:51]} 40. Rc1 {[%emt 0:00:00]} Kd6 {[%emt 0:01:25]} 41. Rb1 {[%emt 0:07:09]} Ra3 {[%emt 0:11:05]} 1/2-1/2

[Event "EYCC 2017"]
[Site "Mamaia"]
[Date "2017.09.07"]
[Round "3"]
[White "Suleymanli, Aydin"]
[Black "Hoffmann, Yair"]
[Result "1-0"]
[ECO "D12"]
[WhiteElo "2351"]
[BlackElo "2010"]
[Annotator "NA"]
[PlyCount "83"]
[EventDate "2017.??.??"]
[EventType "swiss"]
[EventCountry "ROU"]
[SourceTitle "playchess.com"]
[Source "ChessBase"]
[SourceQuality "1"]
[TimeControl "40/5400+30:1800+30"]

1. d4 {[%emt 0:00:00]} d5 {[%emt 0:00:16]} 2. c4 {[%emt 0:00:00]} c6 {[%emt 0:00:08]} 3. Nf3 {[%emt 0:00:00]} Nf6 {[%emt 0:00:25]} 4. e3 {[%emt 0:00:04]} Bf5 {[%emt 0:00:36]} 5. Nc3 {[%emt 0:00:07]} e6 {[%emt 0:01:04]} 6. Bd3 {[%emt 0:00:14]} Bxd3 {[%emt 0:01:35]} 7. Qxd3 {[%emt 0:00:11]} Be7 {[%emt 0:00:47]} 8. O-O {[%emt 0:01:17]} Nbd7 {[%emt 0:00:15]} 9. e4 {[%emt 0:01:39]} dxe4 {[%emt 0:00:43]} 10. Nxe4 {[%emt 0:00:04]} Nxe4 {[%emt 0:00:15]} 11. Qxe4 {[%emt 0:03:04]} O-O {[%emt 0:01:33]} 12. Bd2 {[%emt 0:04:17]} Nf6 {[%emt 0:02:45]} 13. Qe2 {[%emt 0:00:54]} Qb6 {[%emt 0:05:42]} 14. b4 {[%emt 0:07:25]} Qc7 {[%emt 0:03:14]} 15. a4 {[%emt 0:02:42]} a6 {[%emt 0:02:02]} 16. a5 {[%emt 0:06:24]} Rad8 {[%emt 0:03:52]} 17. Bc3 {[%emt 0:03:05]} Nd7 {[%emt 0:05:30]} 18. Rfe1 {[%emt 0:00:55]} Rfe8 {[%emt 0:00:41]} 19. Rad1 {[%emt 0:04:48]} Bf6 {[%emt 0:02:15]} 20. Rd3 {[%emt 0:04:10]} Re7 {[%emt 0:07:29]} 21. Nd2 {[%emt 0:04:54]} g6 {[%emt 0:02:54]} 22. Ne4 {[%emt 0:08:27]} Bg7 {[%emt 0:02:41]} 23. g3 {[%emt 0:13:13]} Nf6 {[%emt 0:05:03]} 24. Nd2 {[%emt 0:01:42]} Ne8 {[%emt 0:02:03]} 25. f4 {[%emt 0:05:12]} Nd6 {[%emt 0:01:21]} 26. g4 {[%emt 0:01:00]} Red7 {[%emt 0:02:30]} 27. Qf1 {[%emt 0:03:17]} Re7 {[%emt 0:09:54]} 28. Rf3 {[%emt 0:01:44]} Ne8 {[%emt 0:02:46]} 29. Nb3 {[%emt 0:00:07]} Nf6 {[%emt 0:02:31]} 30. h3 {[%emt 0:01:05]} Ree8 {[%emt 0:02:11]} 31. Re2 {[%emt 0:01:19]} Nd7 {[%emt 0:01:13]} 32. g5 {[%emt 0:01:48]} f6 {[%emt 0:08:56]} 33. Qe1 {[%emt 0:04:30]} Kf7 {[%emt 0:02:02]} 34. gxf6 {[%emt 0:01:34]} Nxf6 {[%emt 0:01:17]} 35. Nc5 {[%emt 0:00:04]} Qc8 {[%emt 0:00:52]} 36. Rfe3 {[%emt 0:00:58]} Rd6 {[%emt 0:00:51]} 37. Qh4 {[%emt 0:03:22]} Qb8 {[%emt 0:03:47]} 38. d5 {[%emt 0:01:35]} exd5 {[%emt 0:03:01]} 39. Rxe8 {[%emt 0:00:42]} Nxe8 {[%emt 0:02:29]} 40. Qe7+ {[%emt 0:00:00]} Kg8 {[%emt 0:00:13]} 41. Nd7 {[%emt 0:04:55]} Qc8 {[%emt 0:08:05]} 42. Bxg7 {[%emt 0:00:06]} 1-0

[Event "EYCC 2017"]
[Site "Mamaia"]
[Date "2017.09.07"]
[Round "3"]
[White "Bjerre, Jonas Buhl"]
[Black "Pedoson, Georg Aleksander"]
[Result "1-0"]
[ECO "B15"]
[WhiteElo "2348"]
[BlackElo "2021"]
[Annotator "NA"]
[PlyCount "91"]
[EventDate "2017.??.??"]
[EventType "swiss"]
[EventCountry "ROU"]
[SourceTitle "playchess.com"]
[Source "ChessBase"]
[SourceQuality "1"]
[TimeControl "40/5400+30:1800+30"]

1. e4 {[%emt 0:00:00]} c6 {[%emt 0:00:05]} 2. d4 {[%emt 0:00:00]} d5 {[%emt 0:00:05]} 3. Nc3 {[%emt 0:00:00]} dxe4 {[%emt 0:00:20]} 4. Nxe4 {[%emt 0:02:39]} Nf6 {[%emt 0:00:08]} 5. Nxf6+ {[%emt 0:00:12]} exf6 {[%emt 0:00:08]} 6. c3 {[%emt 0:00:11]} Bd6 {[%emt 0:01:27]} 7. Bd3 {[%emt 0:00:12]} O-O {[%emt 0:04:58]} 8. Qc2 {[%emt 0:00:25]} Re8+ {[%emt 0:01:19]} 9. Ne2 {[%emt 0:00:07]} g6 {[%emt 0:00:33]} 10. h4 {[%emt 0:01:16]} Be6 {[%emt 0:01:00]} 11. h5 {[%emt 0:01:47]} f5 {[%emt 0:00:17]} 12. Bd2 {[%emt 0:15:11]} Nd7 {[%emt 0:04:34]} 13. O-O-O {[%emt 0:06:51]} Qf6 {[%emt 0:07:29]} 14. Kb1 {[%emt 0:11:10]} b5 {[%emt 0:08:43]} 15. Nf4 {[%emt 0:03:43]} Nb6 {[%emt 0:06:30]} 16. Rh3 {[%emt 0:11:10]} Nd5 {[%emt 0:04:42]} 17. Qc1 {[%emt 0:06:18]} b4 {[%emt 0:11:07]} 18. cxb4 {[%emt 0:10:15]} Nxb4 {[%emt 0:09:00]} 19. Bxb4 {[%emt 0:02:12]} Bxb4 {[%emt 0:00:02]} 20. hxg6 {[%emt 0:00:44]} hxg6 {[%emt 0:01:24]} 21. Nxe6 {[%emt 0:01:53]} Qxe6 {[%emt 0:02:46]} 22. Rdh1 {[%emt 0:03:40]} Qf6 {[%emt 0:03:57]} 23. Bc4 {[%emt 0:02:54]} f4 {[%emt 0:05:44]} 24. Bxf7+ {[%emt 0:04:19]} Kxf7 {[%emt 0:00:26]} 25. Qc4+ {[%emt 0:00:39]} Qe6 {[%emt 0:00:18]} 26. Qxb4 {[%emt 0:00:46]} Rab8 {[%emt 0:00:53]} 27. Qc3 {[%emt 0:00:43]} Qd5 {[%emt 0:03:08]} 28. Rh7+ {[%emt 0:00:49]} Kf6 {[%emt 0:00:14]} 29. Rc7 {[%emt 0:01:50]} Rb6 {[%emt 0:00:57]} 30. Rc1 {[%emt 0:01:55]} Re6 {[%emt 0:03:08]} 31. a4 {[%emt 0:05:39]} a5 {[%emt 0:03:14]} 32. Qc5 {[%emt 0:02:05]} Rb4 {[%emt 0:05:18]} 33. Rxc6 {[%emt 0:03:31]} Qe4+ {[%emt 0:00:27]} 34. Qc2 {[%emt 0:00:42]} Rxd4 {[%emt 0:00:40]} 35. Qxe4 {[%emt 0:00:42]} Rdxe4 {[%emt 0:00:07]} 36. Rxe6+ {[%emt 0:00:22]} Kxe6 {[%emt 0:00:19]} 37. b3 {[%emt 0:00:32]} Kd5 {[%emt 0:01:11]} 38. Rd1+ {[%emt 0:00:13]} Kc5 {[%emt 0:01:07]} 39. Kc2 {[%emt 0:00:09]} Kb4 {[%emt 0:01:03]} 40. Rd2 {[%emt 0:00:00]} g5 {[%emt 0:01:13]} 41. Kb2 {[%emt 0:03:10]} Re1 {[%emt 0:05:11]} 42. Rc2 {[%emt 0:01:01]} Re4 {[%emt 0:00:23]} 43. f3 {[%emt 0:00:39]} Rd4 {[%emt 0:00:06]} 44. Ka2 {[%emt 0:00:19]} g4 {[%emt 0:00:13]} 45. fxg4 {[%emt 0:02:04]} f3 {[%emt 0:00:43]} 46. g5 {[%emt 0:04:39]} 1-0

[Event "EYCC 2017"]
[Site "Mamaia"]
[Date "2017.09.07"]
[Round "3"]
[White "Badelka, Olga"]
[Black "Zotova, Anastasia"]
[Result "1-0"]
[ECO "D80"]
[WhiteElo "2335"]
[BlackElo "2009"]
[Annotator "NA"]
[PlyCount "107"]
[EventDate "2017.??.??"]
[EventType "swiss"]
[EventCountry "ROU"]
[SourceTitle "playchess.com"]
[Source "ChessBase"]
[SourceQuality "1"]
[TimeControl "40/5400+30:1800+30"]

1. d4 {[%emt 0:00:00]} Nf6 {[%emt 0:00:08]} 2. c4 {[%emt 0:00:00]} g6 {[%emt 0:00:05]} 3. Nc3 {[%emt 0:00:00]} d5 {[%emt 0:00:06]} 4. e3 {[%emt 0:00:00]} Bg7 {[%emt 0:00:22]} 5. cxd5 {[%emt 0:00:11]} Nxd5 {[%emt 0:00:09]} 6. Nxd5 {[%emt 0:00:05]} Qxd5 {[%emt 0:00:07]} 7. Ne2 {[%emt 0:00:03]} O-O {[%emt 0:03:21]} 8. Nc3 {[%emt 0:00:04]} Qd8 {[%emt 0:07:34]} 9. Be2 {[%emt 0:00:27]} Nd7 {[%emt 0:00:32]} 10. O-O {[%emt 0:02:16]} c5 {[%emt 0:00:52]} 11. d5 {[%emt 0:00:49]} Nb6 {[%emt 0:01:02]} 12. e4 {[%emt 0:04:45]} e6 {[%emt 0:06:13]} 13. Be3 {[%emt 0:03:51]} Be5 {[%emt 0:09:03]} 14. dxe6 {[%emt 0:09:28]} Bxe6 {[%emt 0:08:39]} 15. Bxc5 {[%emt 0:00:47]} Qxd1 {[%emt 0:01:32]} 16. Rfxd1 {[%emt 0:00:29]} Rfc8 {[%emt 0:00:23]} 17. Bd4 {[%emt 0:01:24]} Bxd4 {[%emt 0:00:48]} 18. Rxd4 {[%emt 0:00:06]} Nc4 {[%emt 0:01:13]} 19. Bxc4 {[%emt 0:06:47]} Bxc4 {[%emt 0:01:14]} 20. f4 {[%emt 0:00:59]} b5 {[%emt 0:01:27]} 21. a3 {[%emt 0:00:19]} a5 {[%emt 0:00:15]} 22. Kf2 {[%emt 0:06:41]} Rab8 {[%emt 0:02:11]} 23. Rc1 {[%emt 0:03:43]} Rc6 {[%emt 0:07:20]} 24. Nd1 {[%emt 0:05:57]} Rbc8 {[%emt 0:02:40]} 25. Ne3 {[%emt 0:02:29]} Bb3 {[%emt 0:00:54]} 26. Rxc6 {[%emt 0:00:34]} Rxc6 {[%emt 0:00:00]} 27. Ke2 {[%emt 0:08:48]} Kf8 {[%emt 0:03:39]} 28. Kd2 {[%emt 0:00:31]} Ke7 {[%emt 0:01:08]} 29. g4 {[%emt 0:01:25]} Ke6 {[%emt 0:03:55]} 30. h4 {[%emt 0:00:58]} Rc7 {[%emt 0:05:21]} 31. Rd8 {[%emt 0:04:37]} f6 {[%emt 0:04:27]} 32. g5 {[%emt 0:03:14]} fxg5 {[%emt 0:02:45]} 33. hxg5 {[%emt 0:00:04]} Rf7 {[%emt 0:01:22]} 34. Ng2 {[%emt 0:19:34]} Rc7 {[%emt 0:01:28]} 35. Ne1 {[%emt 0:00:31]} Rc4 {[%emt 0:06:59]} 36. Nd3 {[%emt 0:00:06]} Rc2+ {[%emt 0:01:25]} 37. Ke3 {[%emt 0:00:05]} Bc4 {[%emt 0:00:19]} 38. Nc5+ {[%emt 0:02:00]} Kf7 {[%emt 0:00:12]} 39. Rd7+ {[%emt 0:02:09]} Kg8 {[%emt 0:00:12]} 40. Rd2 {[%emt 0:00:00]} Rc1 {[%emt 0:00:27]} 41. Nd7 {[%emt 0:00:59]} Be6 {[%emt 0:03:01]} 42. Nf6+ {[%emt 0:01:53]} Kg7 {[%emt 0:00:09]} 43. Rd6 {[%emt 0:01:58]} Bc8 {[%emt 0:01:45]} 44. Rb6 {[%emt 0:03:30]} Rc5 {[%emt 0:01:54]} 45. Kd4 {[%emt 0:01:11]} Rc4+ {[%emt 0:02:14]} 46. Kd5 {[%emt 0:00:05]} Rc2 {[%emt 0:00:31]} 47. Rxb5 {[%emt 0:00:16]} a4 {[%emt 0:00:31]} 48. Ke5 {[%emt 0:02:28]} Rc6 {[%emt 0:00:57]} 49. Ra5 {[%emt 0:01:13]} h5 {[%emt 0:00:47]} 50. f5 {[%emt 0:01:45]} gxf5 {[%emt 0:00:46]} 51. exf5 {[%emt 0:00:04]} h4 {[%emt 0:00:06]} 52. Ra7+ {[%emt 0:00:27]} Kf8 {[%emt 0:00:08]} 53. g6 {[%emt 0:00:19]} Rc5+ {[%emt 0:00:10]} 54. Ke4 1-0

[Event "EYCC 2017"]
[Site "Mamaia"]
[Date "2017.09.07"]
[Round "3"]
[White "Schitco, Ivan"]
[Black "Hakobyan, Eduard"]
[Result "1-0"]
[ECO "A45"]
[WhiteElo "2325"]
[BlackElo "2178"]
[Annotator "NA"]
[PlyCount "61"]
[EventDate "2017.??.??"]
[EventType "swiss"]
[EventCountry "ROU"]
[SourceTitle "playchess.com"]
[Source "ChessBase"]
[SourceQuality "1"]
[TimeControl "40/5400+30:1800+30"]

1. d4 {[%emt 0:00:00]} Nf6 {[%emt 0:00:08]} 2. Bf4 {[%emt 0:00:00]} e6 {[%emt 0:00:16]} 3. e3 {[%emt 0:00:01]} b6 {[%emt 0:00:20]} 4. Nf3 {[%emt 0:00:26]} Bb7 {[%emt 0:00:24]} 5. Nbd2 {[%emt 0:00:21]} c5 {[%emt 0:00:35]} 6. c3 {[%emt 0:00:13]} Be7 {[%emt 0:00:22]} 7. h3 {[%emt 0:00:06]} O-O {[%emt 0:00:21]} 8. Bd3 {[%emt 0:00:28]} d6 {[%emt 0:00:39]} 9. O-O {[%emt 0:00:19]} Nbd7 {[%emt 0:00:46]} 10. Qe2 {[%emt 0:01:17]} Re8 {[%emt 0:03:37]} 11. Bh2 {[%emt 0:01:36]} Nf8 {[%emt 0:07:22]} 12. e4 {[%emt 0:03:17]} Ng6 {[%emt 0:00:43]} 13. Rfd1 {[%emt 0:02:56]} d5 {[%emt 0:09:32]} 14. e5 {[%emt 0:06:10]} Nd7 {[%emt 0:01:18]} 15. Ne1 {[%emt 0:08:04]} cxd4 {[%emt 0:04:50]} 16. cxd4 {[%emt 0:00:09]} Nb8 {[%emt 0:02:36]} 17. f4 {[%emt 0:05:22]} Nc6 {[%emt 0:01:00]} 18. Nc2 {[%emt 0:00:54]} Bc8 {[%emt 0:13:12]} 19. g4 {[%emt 0:04:01]} Nb4 {[%emt 0:13:07]} 20. Nxb4 {[%emt 0:01:21]} Bxb4 {[%emt 0:00:02]} 21. Bg3 {[%emt 0:06:34]} Be7 {[%emt 0:03:51]} 22. Nf3 {[%emt 0:02:24]} Bd7 {[%emt 0:05:59]} 23. Kh2 {[%emt 0:05:54]} Nf8 {[%emt 0:01:55]} 24. h4 {[%emt 0:04:10]} h6 {[%emt 0:02:32]} 25. Rg1 {[%emt 0:03:55]} g5 {[%emt 0:01:55]} 26. fxg5 {[%emt 0:01:40]} hxg5 {[%emt 0:00:08]} 27. h5 {[%emt 0:00:11]} Kg7 {[%emt 0:01:02]} 28. Rgf1 {[%emt 0:01:30]} Nh7 {[%emt 0:02:03]} 29. Bxh7 {[%emt 0:01:41]} Kxh7 {[%emt 0:00:02]} 30. Qd3+ {[%emt 0:00:44]} Kg7 {[%emt 0:00:19]} 31. Nxg5 {[%emt 0:00:54]} 1-0

[Event "EYCC 2017"]
[Site "Mamaia"]
[Date "2017.09.07"]
[Round "3"]
[White "Kucuksari, Kaan"]
[Black "Ongut, Tamas Gunes"]
[Result "1/2-1/2"]
[ECO "A48"]
[WhiteElo "2319"]
[BlackElo "2113"]
[Annotator "NA"]
[PlyCount "116"]
[EventDate "2017.??.??"]
[EventType "swiss"]
[EventCountry "ROU"]
[SourceTitle "playchess.com"]
[Source "ChessBase"]
[SourceQuality "1"]
[TimeControl "40/5400+30:1800+30"]

1. d4 {[%emt 0:00:00]} Nf6 {[%emt 0:01:28]} 2. Nf3 {[%emt 0:00:00]} g6 {[%emt 0:00:13]} 3. c4 {[%emt 0:00:00]} Bg7 {[%emt 0:00:07]} 4. Nc3 {[%emt 0:00:00]} O-O {[%emt 0:00:13]} 5. e4 {[%emt 0:00:00]} d6 {[%emt 0:01:49]} 6. h3 {[%emt 0:00:02]} e5 {[%emt 0:00:06]} 7. d5 {[%emt 0:00:05]} a5 {[%emt 0:00:05]} 8. Bg5 {[%emt 0:00:07]} Na6 {[%emt 0:00:21]} 9. Be2 {[%emt 0:00:19]} Qe8 {[%emt 0:01:37]} 10. Nd2 {[%emt 0:01:36]} Nc5 {[%emt 0:05:17]} 11. b3 {[%emt 0:03:07]} h6 {[%emt 0:11:29]} 12. Be3 {[%emt 0:14:29]} c6 {[%emt 0:06:52]} 13. a3 {[%emt 0:13:24]} Bd7 {[%emt 0:08:36]} 14. b4 {[%emt 0:06:27]} cxd5 {[%emt 0:01:46]} 15. exd5 {[%emt 0:18:34]} Na4 {[%emt 0:02:28]} 16. Nce4 {[%emt 0:10:32]} Nxe4 {[%emt 0:05:33]} 17. Nxe4 {[%emt 0:00:10]} Qe7 {[%emt 0:09:07]} 18. b5 {[%emt 0:05:30]} Qh4 {[%emt 0:15:14]} 19. Bf3 {[%emt 0:12:03]} Nb2 {[%emt 0:03:07]} 20. Qe2 {[%emt 0:01:12]} Nxc4 {[%emt 0:01:28]} 21. Qxc4 {[%emt 0:01:14]} f5 {[%emt 0:02:20]} 22. Nxd6 {[%emt 0:08:22]} Qxc4 {[%emt 0:01:59]} 23. Nxc4 {[%emt 0:00:01]} e4 {[%emt 0:00:08]} 24. Rb1 {[%emt 0:00:49]} exf3 {[%emt 0:00:08]} 25. gxf3 {[%emt 0:00:06]} f4 {[%emt 0:00:16]} 26. Bb6 {[%emt 0:03:58]} Rf5 {[%emt 0:05:19]} 27. d6 {[%emt 0:00:45]} Re8+ {[%emt 0:00:44]} 28. Kf1 {[%emt 0:00:13]} Rxb5 {[%emt 0:00:29]} 29. Rxb5 {[%emt 0:00:48]} Bxb5 {[%emt 0:03:04]} 30. Kg2 {[%emt 0:00:00]} Re6 {[%emt 0:04:02]} 31. Rd1 {[%emt 0:00:12]} Bxc4 {[%emt 0:00:24]} 32. d7 {[%emt 0:00:04]} Bf6 {[%emt 0:00:05]} 33. d8=Q+ {[%emt 0:00:30]} Bxd8 {[%emt 0:00:11]} 34. Rxd8+ {[%emt 0:00:01]} Kf7 {[%emt 0:00:50]} 35. Bxa5 {[%emt 0:00:10]} Bb5 {[%emt 0:01:11]} 36. Bb4 {[%emt 0:00:50]} Re8 {[%emt 0:01:00]} 37. Rd6 {[%emt 0:01:14]} Re6 {[%emt 0:01:02]} 38. Rd8 {[%emt 0:00:04]} Re8 {[%emt 0:00:20]} 39. Rd6 {[%emt 0:00:25]} Bc6 {[%emt 0:00:57]} 40. Bd2 {[%emt 0:00:00]} g5 {[%emt 0:02:05]} 41. Bc3 {[%emt 0:13:28]} Rg8 {[%emt 0:04:23]} 42. Rxh6 {[%emt 0:05:11]} g4 {[%emt 0:01:10]} 43. Rf6+ {[%emt 0:05:42]} Ke7 {[%emt 0:01:04]} 44. Rxf4 {[%emt 0:00:28]} gxf3+ {[%emt 0:01:18]} 45. Kf1 {[%emt 0:00:22]} Rg2 {[%emt 0:04:25]} 46. Ke1 {[%emt 0:01:08]} Rg6 {[%emt 0:04:17]} 47. Kd2 {[%emt 0:02:48]} Re6 {[%emt 0:00:36]} 48. Bd4 {[%emt 0:02:31]} Re2+ {[%emt 0:01:45]} 49. Kc3 {[%emt 0:01:01]} Kd6 {[%emt 0:05:41]} 50. Be3 {[%emt 0:04:19]} Ra2 {[%emt 0:00:24]} 51. Rd4+ {[%emt 0:00:18]} Ke6 {[%emt 0:00:27]} 52. Kb3 {[%emt 0:00:34]} Ra1 {[%emt 0:00:26]} 53. Kb2 {[%emt 0:00:13]} Rh1 {[%emt 0:00:09]} 54. h4 {[%emt 0:00:19]} Kf5 {[%emt 0:00:22]} 55. Bg5 {[%emt 0:01:12]} Rh2 {[%emt 0:00:33]} 56. Rd2 {[%emt 0:00:16]} Be4 {[%emt 0:01:52]} 57. Kc3 {[%emt 0:00:22]} Bc6 {[%emt 0:01:26]} 58. Kd4 {[%emt 0:00:24]} Rh1 {[%emt 0:00:25] Ke5+ Kxe5} 1/2-1/2